bitfinex/quotes_BTCUSD_20230110
["timestamp","ask_amount","ask_price","bid_price","bid_amount"]
[1673310594212,0.8253335,17199.0,17198.0,1.85399221]
[1673310594731,0.79925557,17199.0,17198.0,1.85399221]
[1673310594980,0.65098722,17199.0,17198.0,1.85399221]
[1673310595230,0.65098722,17199.0,17198.0,3.03545421]
[1673310595496,0.45066922,17199.0,17198.0,3.03545421]
[1673310595745,0.45066922,17199.0,17198.0,3.33545421]
[1673310595746,0.18924007,17199.0,17198.0,3.33545421]
[1673310596009,0.015,17199.0,17198.0,3.03545421]
[1673310596316,8.7391513,17200.0,17198.0,3.32693344]
[1673310596514,0.001,17199.0,17198.0,3.75576244]
[1673310596765,8.1291358,17200.0,17198.0,3.32693344]
[1673310597030,8.1291358,17200.0,17198.0,3.75557916]
[1673310597277,8.1291358,17200.0,17199.0,0.58394828]
[1673310597529,8.39056495,17200.0,17199.0,2.32823528]
[1673310597779,8.1291358,17200.0,17199.0,2.57813934]
[1673310598513,7.95589573,17200.0,17199.0,2.87813934]
[1673310598755,7.95489573,17200.0,17199.0,2.87813934]
[1673310599010,7.95489573,17200.0,17199.0,2.88213934]
[1673310599511,7.95489573,17200.0,17199.0,3.24409434]
[1673310599765,7.95489573,17200.0,17199.0,2.88213934]
[1673310600757,7.95489573,17200.0,17199.0,3.24409434]
[1673310601226,7.95149073,17200.0,17199.0,3.24409434]
[1673310602175,7.95149073,17200.0,17199.0,2.88213934]
[1673310604723,7.95149073,17200.0,17199.0,2.58213934]
[1673310605232,7.95149073,17200.0,17199.0,2.5824866]
[1673310606269,7.95149073,17200.0,17199.0,2.39048957]
[1673310606536,7.95149073,17200.0,17199.0,2.94039363]
[1673310606789,7.95149073,17200.0,17199.0,2.8824866]
[1673310607302,7.95149073,17200.0,17199.0,2.5824866]
[1673310608656,7.95149073,17200.0,17199.0,2.8824866]
[1673310610782,7.95149073,17200.0,17199.0,3.8824866]
[1673310614883,7.95149073,17200.0,17199.0,3.94039363]
[1673310615895,7.95149073,17200.0,17199.0,3.8824866]
[1673310617949,7.95149073,17200.0,17199.0,4.0730866]
[1673310618459,7.95149073,17200.0,17199.0,4.0690866]
[1673310618717,7.95149073,17200.0,17199.0,3.7730866]
[1673310618969,7.95149073,17200.0,17199.0,3.7690866]
[1673310619708,7.95149073,17200.0,17199.0,4.0730866]
[1673310622672,7.95149073,17200.0,17199.0,0.25390406]
[1673310622919,8.38882189,17200.0,17199.0,0.25390406]
[1673310623179,8.3260488,17200.0,17199.0,0.25383505]
[1673310623511,9.02480911,17200.0,17199.0,0.25383505]
[1673310623768,9.19915539,17200.0,17199.0,0.25383505]
[1673310624558,9.63488095,17200.0,17199.0,0.25383505]
[1673310624820,8.93612064,17200.0,17199.0,0.25383505]
[1673310625308,8.76143069,17200.0,17199.0,0.25383505]
[1673310625560,9.19876185,17200.0,17199.0,0.25383505]
[1673310626553,9.63453907,17200.0,17199.0,0.25383505]
[1673310626807,9.19881351,17200.0,17199.0,0.25383505]
[1673310627908,8.76148235,17200.0,17199.0,0.25383505]
[1673310628424,9.19881351,17200.0,17199.0,0.25383505]
[1673310628695,9.57214182,17200.0,17199.0,0.25383505]
[1673310628946,9.19726731,17200.0,17199.0,0.25383505]
[1673310629752,8.93612064,17200.0,17199.0,0.25383505]
[1673310630456,9.13549729,17200.0,17199.0,0.25383505]
[1673310630984,9.8056371,17200.0,17199.0,0.25383505]
[1673310632233,8.78691094,17200.0,17199.0,0.25383505]
[1673310632497,9.13519822,17200.0,17199.0,0.26465882]
[1673310633243,8.93142771,17200.0,17199.0,0.26465882]
[1673310633503,9.13083132,17200.0,17199.0,0.26465882]
[1673310633759,8.93142771,17200.0,17199.0,0.26465882]
[1673310633993,8.73110971,17200.0,17199.0,0.26465882]
[1673310634529,8.931497,17200.0,17199.0,0.26465882]
[1673310634882,9.131815,17200.0,17199.0,0.26465882]
[1673310637523,9.56914616,17200.0,17199.0,0.26465882]
[1673310638532,9.131815,17200.0,17199.0,0.26465882]
[1673310639818,8.93142771,17200.0,17199.0,0.26465882]
[1673310640344,9.19258123,17200.0,17199.0,0.26465882]
[1673310640604,8.93142771,17200.0,17199.0,0.26465882]
[1673310641127,9.13135547,17200.0,17199.0,0.26465882]
[1673310641870,8.93142771,17200.0,17199.0,0.26465882]
[1673310642886,9.19257963,17200.0,17199.0,0.26465882]
[1673310643646,8.75685407,17200.0,17199.0,0.26465882]
[1673310644388,8.93142771,17200.0,17199.0,0.26465882]
[1673310645168,9.56898714,17200.0,17199.0,0.26465882]
[1673310645439,9.13170143,17200.0,17199.0,0.26465882]
[1673310646234,9.13169117,17200.0,17199.0,0.26465882]
[1673310646435,9.13169133,17200.0,17199.0,0.26465882]
[1673310646739,8.93142771,17200.0,17199.0,0.26465882]
[1673310647518,9.13169498,17200.0,17199.0,0.26465882]
[1673310649763,8.75687724,17200.0,17199.0,0.26465882]
[1673310650503,9.13182124,17200.0,17199.0,0.26465882]
[1673310651207,9.21971845,17200.0,17199.0,0.26465882]
[1673310651458,8.78356736,17200.0,17199.0,0.26465882]
[1673310651961,8.78356736,17200.0,17199.0,0.26065882]
[1673310652186,9.14784954,17200.0,17199.0,0.26265882]
[1673310655246,8.79956736,17200.0,17199.0,0.26265882]
[1673310655781,8.79956736,17200.0,17199.0,0.26256363]
[1673310659448,8.3638418,17200.0,17199.0,0.26256363]
[1673310660536,8.3638418,17200.0,17199.0,0.01282377]
[1673310661058,8.7998587,17200.0,17199.0,0.01282377]
[1673310661304,9.3225305,17200.0,17199.0,0.01282377]
[1673310663317,9.68218823,17200.0,17199.0,0.01282377]
[1673310663841,9.3225305,17200.0,17199.0,0.01282377]
[1673310668279,9.32242437,17200.0,17199.0,0.01282377]
[1673310672240,9.90381937,17200.0,17199.0,0.01282377]
[1673310673540,9.32242437,17200.0,17199.0,0.01282377]
[1673310674249,9.90381937,17200.0,17199.0,0.01282377]
[1673310674510,9.32242437,17200.0,17199.0,0.01282377]
[1673310675251,8.88640747,17200.0,17199.0,0.01282377]
[1673310676235,9.32245899,17200.0,17199.0,0.01282377]
[1673310678249,8.88640747,17200.0,17199.0,0.01282377]
[1673310678506,9.32250418,17200.0,17199.0,0.01282377]
[1673310681549,9.32254847,17200.0,17199.0,0.01282377]
[1673310681853,8.88640747,17200.0,17199.0,0.01282377]
[1673310687172,8.36373567,17200.0,17199.0,0.01282377]
[1673310689162,8.79951707,17200.0,17199.0,0.01282377]
[1673310692840,8.79951707,17200.0,17199.0,0.01273202]
[1673310693616,8.36373567,17200.0,17199.0,0.01273202]
[1673310695619,8.79949712,17200.0,17199.0,0.01273202]
[1673310698331,9.14807527,17200.0,17199.0,0.01273202]
[1673310698612,9.14588478,17200.0,17199.0,0.59416102]
[1673310698854,9.1458843,17200.0,17199.0,0.59416102]
[1673310699100,8.9455663,17200.0,17199.0,0.59416102]
[1673310699359,9.1458843,17200.0,17199.0,0.01273202]
[1673310699606,8.79730615,17200.0,17199.0,0.01273202]
[1673310700361,8.79730615,17200.0,17199.0,0.59416102]
[1673310700617,9.14585603,17200.0,17199.0,0.59416102]
[1673310700873,8.79730615,17200.0,17199.0,0.59416102]
[1673310701120,9.1458544,17200.0,17199.0,0.59416102]
[1673310701628,8.9455364,17200.0,17199.0,0.59416102]
[1673310701888,8.94553577,17200.0,17199.0,0.59416102]
[1673310703439,8.94585069,17200.0,17199.0,0.59416102]
[1673310704369,9.14616869,17200.0,17199.0,0.59416102]
[1673310705851,8.94765121,17200.0,17199.0,0.59416102]
[1673310706105,9.14579455,17200.0,17199.0,0.59416102]
[1673310706357,8.94765121,17200.0,17199.0,0.59416102]
[1673310707563,9.20902235,17200.0,17199.0,0.59416102]
[1673310708082,8.94765121,17200.0,17199.0,0.59416102]
[1673310708333,8.77326199,17200.0,17199.0,0.59416102]
[1673310709331,8.94765121,17200.0,17199.0,0.59416102]
[1673310710087,9.14534657,17200.0,17199.0,0.59416102]
[1673310712082,9.14034657,17200.0,17199.0,0.59416102]
[1673310712826,9.20407132,17200.0,17199.0,0.59416102]
[1673310713078,8.76830961,17200.0,17199.0,0.59416102]
[1673310713328,9.20407106,17200.0,17199.0,0.59416102]
[1673310713812,8.76830961,17200.0,17199.0,0.59416102]
[1673310715038,8.94265121,17200.0,17199.0,0.59416102]
[1673310716554,9.1401385,17200.0,17199.0,0.59416102]
[1673310716798,9.1401385,17200.0,17199.0,0.01273202]
[1673310718774,8.79159088,17200.0,17199.0,0.01273202]
[1673310720510,8.35582943,17200.0,17199.0,0.01273202]
[1673310720999,8.35582943,17200.0,17199.0,0.59416102]
[1673310721493,8.35582943,17200.0,17199.0,0.01273202]
[1673310722018,8.79316059,17200.0,17199.0,0.01273202]
[1673310722270,8.35582943,17200.0,17199.0,0.01273202]
[1673310729016,9.31583239,17200.0,17199.0,0.01273202]
[1673310734219,9.89722739,17200.0,17199.0,0.01273202]
[1673310734478,9.89746654,17200.0,17199.0,0.01036313]
[1673310734738,10.47886154,17200.0,17199.0,0.01036313]
[1673310734992,10.31246952,17200.0,17199.0,0.01036313]
[1673310735235,10.83534664,17200.0,17199.0,0.01036313]
[1673310735514,10.47882771,17200.0,17199.0,0.01036313]
[1673310738898,9.37455559,17200.0,17199.0,0.01036313]
[1673310746176,9.89743271,17200.0,17199.0,0.01036313]
[1673310746430,9.31603771,17200.0,17199.0,0.01036313]
[1673310746686,8.93722443,17200.0,17199.0,0.01036313]
[1673310746952,9.37455559,17200.0,17199.0,0.01036313]
[1673310752563,9.89743271,17200.0,17199.0,0.01036313]
[1673310753074,9.46010155,17200.0,17199.0,0.01036313]
[1673310753332,8.35582943,17200.0,17199.0,0.01036313]
[1673310753800,9.37455559,17200.0,17199.0,0.01036313]
[1673310754298,11.46271631,17200.0,17199.0,0.01036313]
[1673310754540,0.3,17199.0,17197.0,0.18604637]
[1673310754790,1.58227974,17199.0,17198.0,0.18604637]
[1673310755034,2.79981206,17199.0,17198.0,0.18604637]
[1673310755281,2.79981206,17199.0,17197.0,0.18604637]
[1673310755530,0.17818559,17198.0,17197.0,0.18604637]
[1673310755785,0.81428891,17198.0,17197.0,0.18604637]
[1673310756044,0.61397091,17198.0,17197.0,0.18604637]
[1673310756666,0.17818559,17198.0,17197.0,0.18604637]
[1673310757043,0.75964759,17198.0,17197.0,0.19504637]
[1673310757289,0.95996559,17198.0,17197.0,0.18604637]
[1673310757542,0.75964759,17198.0,17197.0,0.18604637]
[1673310758053,0.68976409,17198.0,17197.0,0.19504637]
[1673310761819,0.89008209,17198.0,17197.0,0.19504637]
[1673310762310,0.89008209,17198.0,17197.0,0.009]
[1673310763309,1.03857757,17198.0,17197.0,0.009]
[1673310764067,0.69008209,17198.0,17197.0,0.009]
[1673310769411,1.03866791,17198.0,17197.0,0.009]
[1673310769649,0.83834991,17198.0,17197.0,0.009]
[1673310769907,1.03866791,17198.0,17197.0,0.009]
[1673310770660,0.83834991,17198.0,17197.0,0.009]
[1673310770777,1.03866791,17198.0,17197.0,0.009]
[1673310771252,0.83834991,17198.0,17197.0,0.009]
[1673310771795,1.03866791,17198.0,17197.0,0.009]
[1673310772294,0.83834991,17198.0,17197.0,0.009]
[1673310772518,0.83834991,17198.0,17197.0,0.6385315]
[1673310772758,0.68606874,17198.0,17197.0,2.62069739]
[1673310772994,0.68606874,17198.0,17197.0,2.7449745]
[1673310773243,0.51180158,17198.0,17197.0,2.7449745]
[1673310773478,0.25031866,17198.0,17197.0,2.7449745]
[1673310773715,0.25031866,17198.0,17197.0,2.3830195]
[1673310774224,0.25031866,17198.0,17197.0,3.0449745]
[1673310774462,0.25031866,17198.0,17197.0,3.2344745]
[1673310774940,0.076,17198.0,17197.0,2.8725195]
[1673310776201,0.076,17198.0,17197.0,2.87503971]
[1673310776444,0.076,17198.0,17197.0,3.23699471]
[1673310777173,0.076,17198.0,17197.0,2.87503971]
[1673310778648,0.076,17198.0,17197.0,3.23699471]
[1673310779120,0.076,17198.0,17197.0,2.8725195]
[1673310779421,0.076,17198.0,17197.0,2.87503971]
[1673310779668,0.076,17198.0,17197.0,2.57503971]
[1673310780375,0.076,17198.0,17197.0,2.57264551]
[1673310780606,0.076,17198.0,17197.0,2.87264551]
[1673310781314,0.076,17198.0,17197.0,2.57264551]
[1673310782304,0.076,17198.0,17197.0,2.87264551]
[1673310782536,0.076,17198.0,17197.0,2.57264551]
[1673310784017,0.076,17198.0,17197.0,2.87264551]
[1673310787182,0.076,17198.0,17197.0,2.68314551]
[1673310790526,0.076,17198.0,17197.0,2.6830195]
[1673310791584,0.076,17198.0,17197.0,2.68313353]
[1673310793289,0.076,17198.0,17197.0,2.3830195]
[1673310794842,0.076,17198.0,17197.0,2.38541999]
[1673310795086,0.076,17198.0,17197.0,2.3830195]
[1673310796984,0.076,17198.0,17197.0,2.38541999]
[1673310797245,0.076,17198.0,17197.0,2.3830195]
[1673310798191,0.076,17198.0,17197.0,2.38541999]
[1673310798936,0.076,17198.0,17197.0,2.3830195]
[1673310803226,0.076,17198.0,17197.0,2.38541999]
[1673310804994,0.076,17198.0,17197.0,2.68541999]
[1673310805252,0.076,17198.0,17197.0,2.38541999]
[1673310806226,0.076,17198.0,17197.0,2.3830195]
[1673310807197,0.076,17198.0,17197.0,2.68541999]
[1673310808208,0.076,17198.0,17197.0,2.6830195]
[1673310808452,0.076,17198.0,17197.0,2.3830195]
[1673310808692,0.076,17198.0,17197.0,2.38541999]
[1673310808937,0.076,17198.0,17197.0,2.3830195]
[1673310809683,0.076,17198.0,17197.0,2.38541999]
[1673310810437,0.25031866,17198.0,17197.0,2.38541999]
[1673310810677,0.25031866,17198.0,17197.0,2.38325924]
[1673310810931,0.25031866,17198.0,17197.0,2.3830195]
[1673310811426,0.076,17198.0,17197.0,2.6830195]
[1673310811667,0.076,17198.0,17197.0,2.68531194]
[1673310811914,0.076,17198.0,17197.0,2.6830195]
[1673310812183,0.25031866,17198.0,17197.0,2.6830195]
[1673310812426,0.25031866,17198.0,17197.0,2.3830195]
[1673310812666,0.51180158,17198.0,17197.0,2.3830195]
[1673310812905,0.25031866,17198.0,17197.0,2.3830195]
[1673310813145,0.51180158,17198.0,17197.0,2.3830195]
[1673310814473,0.51180158,17198.0,17197.0,2.38336188]
[1673310814718,0.25031866,17198.0,17197.0,2.3830195]
[1673310814974,0.51180158,17198.0,17197.0,2.3830195]
[1673310815701,0.51180158,17198.0,17197.0,2.38336188]
[1673310815957,0.25031866,17198.0,17197.0,2.38336188]
[1673310816454,0.25031866,17198.0,17197.0,2.68336188]
[1673310816959,0.25031866,17198.0,17197.0,2.38336188]
[1673310818723,0.25031866,17198.0,17197.0,2.68336188]
[1673310819215,0.076,17198.0,17197.0,2.85768302]
[1673310819715,0.076,17198.0,17197.0,3.11915926]
[1673310819938,0.076,17198.0,17197.0,2.85768302]
[1673310820720,0.076,17198.0,17197.0,2.85921031]
[1673310820965,0.076,17198.0,17197.0,2.85734064]
[1673310821237,0.25031866,17198.0,17197.0,2.3830195]
[1673310821475,0.25031866,17198.0,17197.0,2.6830195]
[1673310821945,0.25031866,17198.0,17197.0,2.68488917]
[1673310822203,0.25031866,17198.0,17197.0,2.6830195]
[1673310823193,0.25031866,17198.0,17197.0,2.68488917]
[1673310823692,0.25031866,17198.0,17197.0,2.38488917]
[1673310823939,0.25031866,17198.0,17197.0,2.3830195]
[1673310824184,0.25031866,17198.0,17197.0,2.38488917]
[1673310824426,0.25031866,17198.0,17197.0,2.68488917]
[1673310825197,0.25031866,17198.0,17197.0,2.85921031]
[1673310826975,0.076,17198.0,17197.0,2.85921031]
[1673310827222,0.25031866,17198.0,17197.0,2.85921031]
[1673310827478,0.076,17198.0,17197.0,2.85734064]
[1673310827718,0.25031866,17198.0,17197.0,2.68343825]
[1673310828201,0.25031866,17198.0,17197.0,2.85734064]
[1673310829031,0.25031866,17198.0,17197.0,2.85775939]
[1673310829275,0.25031866,17198.0,17197.0,2.85734064]
[1673310829492,0.076,17198.0,17197.0,2.85734064]
[1673310830004,0.076,17198.0,17197.0,2.85775939]
[1673310830257,0.076,17198.0,17197.0,3.11923563]
[1673310830516,0.076,17198.0,17197.0,2.85775939]
[1673310830782,0.076,17198.0,17197.0,3.11923563]
[1673310831292,0.076,17198.0,17197.0,2.85775939]
[1673310831537,0.076,17198.0,17197.0,3.11923563]
[1673310832062,0.076,17198.0,17197.0,2.85775939]
[1673310832345,0.076,17198.0,17197.0,3.11923563]
[1673310833125,0.076,17198.0,17197.0,2.85775939]
[1673310833374,0.076,17198.0,17197.0,2.85743048]
[1673310835245,0.076,17198.0,17197.0,2.85734064]
[1673310835487,0.076,17198.0,17197.0,2.85798286]
[1673310835725,0.076,17198.0,17197.0,2.85734064]
[1673310836708,0.076,17198.0,17197.0,2.85798286]
[1673310836945,0.076,17198.0,17197.0,3.1194591]
[1673310837180,0.076,17198.0,17197.0,2.85798286]
[1673310837429,0.076,17198.0,17197.0,3.1194591]
[1673310839159,0.076,17198.0,17197.0,3.82378135]
[1673310839397,0.076,17198.0,17197.0,3.1194591]
[1673310840820,0.076,17198.0,17197.0,2.85798286]
[1673310841045,0.076,17198.0,17197.0,2.8574581]
[1673310841533,0.076,17198.0,17197.0,2.85734064]
[1673310842057,0.076,17198.0,17197.0,2.8574581]
[1673310842306,0.076,17198.0,17197.0,2.85734064]
[1673310842818,0.076,17198.0,17197.0,2.55734064]
[1673310843060,0.076,17198.0,17197.0,2.8574581]
[1673310843293,0.076,17198.0,17197.0,2.85734064]
[1673310844026,0.076,17198.0,17197.0,2.8574581]
[1673310844280,0.076,17198.0,17197.0,2.5574581]
[1673310844529,0.076,17198.0,17197.0,2.55734064]
[1673310844765,0.076,17198.0,17197.0,2.85734064]
[1673310845011,0.076,17198.0,17197.0,2.85806821]
[1673310845259,0.076,17198.0,17197.0,2.85734064]
[1673310845926,0.076,17198.0,17197.0,2.55734064]
[1673310846173,0.076,17198.0,17197.0,2.85734064]
[1673310846426,0.076,17198.0,17197.0,2.55734064]
[1673310846641,0.076,17198.0,17197.0,2.3830195]
[1673310847266,0.25031866,17198.0,17197.0,2.3830195]
[1673310847867,0.076,17198.0,17197.0,2.3830195]
[1673310848372,0.076,17198.0,17197.0,2.6830195]
[1673310848627,0.25031866,17198.0,17197.0,2.3830195]
[1673310849139,0.076,17198.0,17197.0,2.3830195]
[1673310849634,0.25031866,17198.0,17197.0,2.3830195]
[1673310851988,0.51180158,17198.0,17197.0,2.3830195]
[1673310853969,0.25031866,17198.0,17197.0,2.3830195]
[1673310855212,0.51180158,17198.0,17197.0,2.3830195]
[1673310856192,0.25031866,17198.0,17197.0,2.3830195]
[1673310856439,0.51180158,17198.0,17197.0,2.3830195]
[1673310857219,0.25031866,17198.0,17197.0,2.3830195]
[1673310857482,0.25031866,17198.0,17197.0,1.171992]
[1673310857483,0.71211958,17198.0,17197.0,1.171992]
[1673310857733,1.63037969,17198.0,17197.0,0.59042354]
[1673310857993,1.30026138,17198.0,17197.0,0.59042354]
[1673310858304,1.49499806,17198.0,17197.0,0.59042354]
[1673310858553,1.33866791,17198.0,17197.0,0.00892754]
[1673310858811,1.77405715,17198.0,17197.0,0.00892754]
[1673310859064,1.93034941,17198.0,17197.0,0.00892754]
[1673310859323,1.58176359,17198.0,17197.0,0.00892754]
[1673310860379,1.93034477,17198.0,17197.0,0.00892754]
[1673310861412,1.58176359,17198.0,17197.0,0.00892754]
[1673310861925,1.77076359,17198.0,17197.0,0.00892754]
[1673310862187,1.9384615,17198.0,17197.0,0.00892754]
[1673310862448,2.95547713,17198.0,17197.0,0.00892754]
[1673310863554,2.37401513,17198.0,17197.0,0.00892754]
[1673310866507,2.72225599,17198.0,17197.0,0.00892754]
[1673310870033,2.56596373,17198.0,17197.0,0.00892754]
[1673310872249,1.98450173,17198.0,17197.0,0.00892754]
[1673310873233,1.81004224,17198.0,17197.0,0.00892754]
[1673310875213,1.63586568,17198.0,17197.0,0.00892754]
[1673310875658,1.81004224,17198.0,17197.0,0.00892754]
[1673310879018,1.81004224,17198.0,17197.0,0.00881179]
[1673310880414,1.185653,17198.0,17197.0,0.00881179]
[1673310880657,1.35975883,17198.0,17197.0,0.00881179]
[1673310880895,1.01151797,17198.0,17197.0,0.00881179]
[1673310881887,1.01151797,17198.0,17197.0,0.59030779]
[1673310883826,1.01151797,17198.0,17197.0,0.00881179]
[1673310884106,0.75042383,17198.0,17197.0,0.59030779]
[1673310884370,0.75042383,17198.0,17197.0,1.19030779]
[1673310884371,0.55010583,17198.0,17197.0,1.19030779]
[1673310885128,0.75042383,17198.0,17197.0,1.77180379]
[1673310885386,0.55010583,17198.0,17197.0,1.77180379]
[1673310890628,0.55010583,17198.0,17197.0,1.77192948]
[1673310890869,0.55010583,17198.0,17197.0,1.77180379]
[1673310891614,1.01151797,17198.0,17197.0,1.77180379]
[1673310891859,0.81119997,17198.0,17197.0,1.77180379]
[1673310892769,0.51119997,17198.0,17197.0,1.77180379]
[1673310893034,0.25010583,17198.0,17197.0,1.77192948]
[1673310893247,0.25010583,17198.0,17197.0,1.77180379]
[1673310894443,0.51119997,17198.0,17197.0,1.77180379]
[1673310894690,0.25010583,17198.0,17197.0,1.77180379]
[1673310895676,0.51119997,17198.0,17197.0,1.77180379]
[1673310896428,0.71151797,17198.0,17197.0,1.77180379]
[1673310896915,0.51119997,17198.0,17197.0,1.77180379]
[1673310901146,0.71151797,17198.0,17197.0,1.77180379]
[1673310901614,0.885653,17198.0,17197.0,1.77180379]
[1673310902874,0.883103,17198.0,17197.0,1.77180379]
[1673310903134,0.883103,17198.0,17197.0,0.59030779]
[1673310903399,1.64885506,17198.0,17197.0,0.00881179]
[1673310903648,1.3006142,17198.0,17197.0,0.00881179]
[1673310905971,1.44886287,17198.0,17197.0,0.00881179]
[1673310906487,1.64918087,17198.0,17197.0,0.00881179]
[1673310906740,1.21379163,17198.0,17197.0,0.00881179]
[1673310907000,0.8575703,17198.0,17197.0,0.00881179]
[1673310907254,1.31932509,17198.0,17197.0,0.00881179]
[1673310907503,1.49327754,17198.0,17197.0,0.59030779]
[1673310907755,1.649427,17198.0,17197.0,0.59030779]
[1673310908010,1.649427,17198.0,17197.0,0.00881179]
[1673310908011,1.6494286,17198.0,17197.0,0.00881179]
[1673310908795,1.30086193,17198.0,17197.0,0.00881179]
[1673310910827,0.86547269,17198.0,17197.0,0.00881179]
[1673310911077,1.30086193,17198.0,17197.0,0.00881179]
[1673310911325,1.21409456,17198.0,17197.0,0.00881179]
[1673310913214,1.0579435,17198.0,17197.0,0.00881179]
[1673310913479,1.31941716,17198.0,17197.0,0.00881179]
[1673310913747,1.0579435,17198.0,17197.0,0.59030779]
[1673310915284,0.88387349,17198.0,17197.0,0.59030779]
[1673310918524,1.31942712,17198.0,17197.0,0.59030779]
[1673310919291,1.0579435,17198.0,17197.0,0.59030779]
[1673310919570,1.31945584,17198.0,17197.0,0.59030779]
[1673310919789,0.88390221,17198.0,17197.0,0.59030779]
[1673310920036,1.31945584,17198.0,17197.0,0.59030779]
[1673310920488,1.0579435,17198.0,17197.0,0.59030779]
[1673310920744,1.0579435,17198.0,17197.0,0.6033382]
[1673310922246,0.88391048,17198.0,17197.0,1.89103578]
[1673310922492,0.50930963,17198.0,17197.0,1.89103578]
[1673310922743,0.24778902,17198.0,17197.0,1.89103578]
[1673310922999,0.50930963,17198.0,17197.0,3.05402778]
[1673310923505,0.24778902,17198.0,17197.0,3.05402778]
[1673310923746,0.50930963,17198.0,17197.0,3.05402778]
[1673310924244,0.24778902,17198.0,17197.0,3.05402778]
[1673310928560,0.07345,17198.0,17197.0,3.05402778]
[1673310928805,0.07345,17198.0,17197.0,3.35402778]
[1673310930307,0.07345,17198.0,17197.0,3.05402778]
[1673310931558,0.07345,17198.0,17197.0,3.35402778]
[1673310932340,0.07345,17198.0,17197.0,3.05402778]
[1673310932825,0.07345,17198.0,17197.0,3.35402778]
[1673310936640,0.17433902,17199.0,17197.0,3.34521599]
[1673310937145,8.55216662,17200.0,17199.0,0.18604637]
[1673310937146,8.37788377,17200.0,17199.0,0.18604637]
[1673310937657,8.57820177,17200.0,17199.0,1.34890437]
[1673310937895,8.11636316,17200.0,17199.0,1.34890437]
[1673310938145,8.18036316,17200.0,17199.0,1.35790437]
[1673310938913,8.00602414,17200.0,17199.0,2.53781747]
[1673310939161,8.00602414,17200.0,17199.0,2.83781747]
[1673310940660,8.00602414,17200.0,17199.0,3.41924647]
[1673310942592,8.00602414,17200.0,17199.0,3.11924647]
[1673310943107,8.00602414,17200.0,17199.0,3.12039873]
[1673310943556,8.00602414,17200.0,17199.0,3.11924647]
[1673310948640,8.00602414,17200.0,17199.0,3.41924647]
[1673310949881,8.00602414,17200.0,17199.0,3.11924647]
[1673310952609,8.00602414,17200.0,17199.0,3.11974813]
[1673310953123,8.00602414,17200.0,17199.0,3.11924647]
[1673310953380,8.00602414,17200.0,17199.0,3.53933337]
[1673310953636,8.00593108,17200.0,17199.0,5.84868714]
[1673310954155,8.00593108,17200.0,17199.0,5.674366]
[1673310954405,7.94193108,17200.0,17199.0,5.64888714]
[1673310954652,7.94393108,17200.0,17199.0,5.50806766]
[1673310954903,7.94393108,17200.0,17199.0,5.47506766]
[1673310955152,7.94893108,17200.0,17199.0,5.59506766]
[1673310956380,7.94893108,17200.0,17199.0,5.7693888]
[1673310961113,7.94893108,17200.0,17199.0,5.59506766]
[1673310961842,7.94893108,17200.0,17199.0,5.40902129]
[1673310962089,7.94893108,17200.0,17199.0,5.59506766]
[1673310962618,7.94893108,17200.0,17199.0,5.7693888]
[1673310962866,7.94893108,17200.0,17199.0,5.59506766]
[1673310965872,7.94893108,17200.0,17199.0,5.7693888]
[1673310969888,7.94893108,17200.0,17199.0,5.59506766]
[1673310970131,7.94893108,17200.0,17199.0,5.7693888]
[1673310973123,7.94893108,17200.0,17199.0,6.72876764]
[1673310974325,7.94893108,17200.0,17199.0,7.07674512]
[1673310974589,7.94893108,17200.0,17199.0,6.90242398]
[1673310975106,7.94893108,17200.0,17199.0,6.70242398]
[1673310975604,7.94882347,17200.0,17199.0,6.70242398]
[1673310976086,7.94882347,17200.0,17199.0,6.90242398]
[1673310977077,7.94882347,17200.0,17199.0,7.33862724]
[1673310977324,7.94882347,17200.0,17199.0,6.90242398]
[1673310980314,7.94882347,17200.0,17199.0,7.33862724]
[1673310980577,7.94882347,17200.0,17199.0,6.90242398]
[1673310985065,7.94882347,17200.0,17199.0,7.67109867]
[1673310985325,7.94882347,17200.0,17199.0,7.86189867]
[1673310985578,7.94882347,17200.0,17199.0,7.52242119]
[1673310986338,7.94882347,17200.0,17199.0,7.86999129]
[1673310986623,7.94882347,17200.0,17199.0,7.52242119]
[1673310987372,7.94882347,17200.0,17199.0,7.87004491]
[1673310988340,7.94882347,17200.0,17199.0,7.67924491]
[1673310989105,7.94882347,17200.0,17199.0,7.67928203]
[1673310989608,7.94882347,17200.0,17199.0,7.33162119]
[1673310991137,6.80407116,17200.0,17199.0,6.24852954]
[1673310991646,6.80407116,17200.0,17199.0,6.90704702]
[1673310993130,6.80407116,17200.0,17199.0,8.2210608]
[1673310993385,6.80407116,17200.0,17199.0,6.90704702]
[1673310993642,6.80407116,17200.0,17199.0,6.24852954]
[1673310994133,6.80407116,17200.0,17199.0,6.93398332]
[1673310994382,6.80407116,17200.0,17199.0,7.03907179]
[1673310994645,6.80407116,17200.0,17199.0,7.56238312]
[1673310994906,6.49507416,17200.0,17199.0,7.56238312]
[1673310996240,6.49507416,17200.0,17199.0,8.26238312]
[1673310997284,5.12151484,17200.0,17199.0,7.73907179]
[1673310997548,5.12151484,17200.0,17199.0,8.84185509]
[1673310997848,5.12151484,17200.0,17199.0,9.03265509]
[1673311001150,5.12151484,17200.0,17199.0,8.51130079]
[1673311001151,5.01226484,17200.0,17199.0,8.51130079]
[1673311001403,4.99959484,17200.0,17199.0,7.72075854]
[1673311004056,4.99959484,17200.0,17199.0,8.01146854]
[1673311004355,4.99959484,17200.0,17199.0,8.42603089]
[1673311004568,4.99959484,17200.0,17199.0,7.72075854]
[1673311005068,4.99959484,17200.0,17199.0,8.31048078]
[1673311005835,4.99959484,17200.0,17199.0,7.72075854]
[1673311006070,4.99959484,17200.0,17199.0,8.31454239]
[1673311007350,4.99959484,17200.0,17199.0,7.72075854]
[1673311007615,4.99959484,17200.0,17199.0,8.35109792]
[1673311008362,4.99959484,17200.0,17199.0,8.16029792]
[1673311009370,4.99959484,17200.0,17199.0,7.52995854]
[1673311009622,4.99959484,17200.0,17199.0,8.08428876]
[1673311010128,4.99959484,17200.0,17199.0,8.51865355]
[1673311011366,3.8548771,17200.0,17199.0,8.51865355]
[1673311014093,3.8548771,17200.0,17199.0,8.08428876]
[1673311015329,3.8548771,17200.0,17199.0,7.38428876]
[1673311015633,3.8548771,17200.0,17199.0,6.82995854]
[1673311016132,3.8548771,17200.0,17199.0,7.89429978]
[1673311016863,3.8548771,17200.0,17199.0,8.59429978]
[1673311017109,3.8548771,17200.0,17199.0,8.88500978]
[1673311018113,3.8548771,17200.0,17199.0,8.36365548]
[1673311018595,3.8548771,17200.0,17199.0,8.88500978]
[1673311019837,3.8548771,17200.0,17199.0,9.51689028]
[1673311020091,3.8548771,17200.0,17199.0,8.88500978]
[1673311020349,3.8548771,17200.0,17199.0,9.5014832]
[1673311020592,3.8548771,17200.0,17199.0,8.88500978]
[1673311021048,3.8548771,17200.0,17199.0,8.69896341]